bitfinex/quotes_SOLUSD_20250728
["timestamp","ask_amount","ask_price","bid_price","bid_amount"]
[1753713499276,32.78291044,188.11,188.06,22.00558307]
[1753713499477,38.098954,188.11,188.05,15.99822647]
[1753713499650,32.78291044,188.09,188.03,6.00827891]
[1753713499850,32.78291044,188.09,188.04,15.99822647]
[1753713500049,32.78291044,188.09,188.05,0.69]
[1753713500307,16.78468397,188.1,188.06,0.69]
[1753713500584,15.99822647,188.09,188.03,6.00827891]
[1753713500788,16.78468397,188.1,188.01,26.5918866]
[1753713500789,15.99822647,188.04,188.01,26.5918866]
[1753713500952,15.99822647,188.02,188.01,0.06]
[1753713501154,32.78291044,188.02,188.01,0.06]
[1753713501353,38.10149356,188.02,188.01,0.06]
[1753713501858,39.0358167,188.02,188.01,0.06]
[1753713502079,80.9758167,188.02,188.01,0.06]
[1753713502462,80.9758167,188.02,188.01,1e-08]
[1753713502867,17.06900711,188.01,188.0,1e-08]
[1753713503057,26.0,187.98,187.95,0.06]
[1753713503273,58.78291044,187.96,187.95,0.06]
[1753713503581,64.10319135,187.96,187.95,0.06]
[1753713503778,64.38751449,187.96,187.95,0.06]
[1753713504380,64.10319135,187.96,187.95,0.06]
[1753713504554,15.99822647,187.96,187.95,0.06]
[1753713504877,26.0,187.99,187.95,0.06]
[1753713505084,26.0,187.99,187.96,0.69]
[1753713505266,15.99822647,188.0,187.96,0.69]
[1753713505463,15.99822647,188.01,187.96,15.99822647]
[1753713505666,15.99822647,188.01,187.97,0.69]
[1753713505870,15.99822647,188.01,187.95,16.05822647]
[1753713506079,15.99822647,188.0,187.95,16.05822647]
[1753713506278,15.99822647,188.02,187.96,16.68822647]
[1753713506794,15.99822647,188.04,187.98,15.99822647]
[1753713507286,15.99822647,188.04,187.97,16.68822647]
[1753713507287,15.99822647,188.03,187.97,16.68822647]
[1753713507467,21.31636053,188.04,187.98,15.99822647]
[1753713507877,5.31813406,188.04,187.97,16.68822647]
[1753713508074,15.99822647,188.02,187.97,16.68822647]
[1753713508689,15.99822647,188.03,187.98,15.99822647]
[1753713508872,15.99822647,188.02,187.97,0.69]
[1753713509079,15.99822647,188.02,187.97,16.68822647]
[1753713509379,15.99822647,188.05,188.0,15.99822647]
[1753713509576,0.14216157,188.07,188.02,15.99822647]
[1753713509776,21.3148683,188.09,188.03,16.68822647]
[1753713510080,15.99822647,188.07,188.03,0.69]
[1753713510382,5.31664183,188.09,188.03,0.69]
[1753713510582,15.99822647,188.07,188.03,0.69]
[1753713510789,15.99822647,188.08,188.04,0.69]
[1753713510994,21.3148683,188.09,188.05,0.71]
[1753713511289,41.99822647,188.06,188.0,0.71]
[1753713511491,15.99822647,188.03,188.0,0.71]
[1753713511695,26.0,188.06,188.0,0.71]
[1753713511883,15.99822647,188.04,188.01,0.71]
[1753713512199,15.99822647,188.04,187.99,15.99822647]
[1753713512486,21.3163351,188.04,187.99,0.71]
[1753713512707,21.3163351,188.04,187.95,0.59205639]
[1753713512708,15.99822647,188.02,187.96,21.31824526]
[1753713512867,15.99822647,188.02,187.97,16.70822647]
[1753713513390,15.99822647,188.02,187.98,0.71]
[1753713513983,26.0,188.06,187.98,0.71]
[1753713513984,15.99822647,188.08,188.01,15.99822647]
[1753713514183,15.99822647,188.07,188.02,15.99822647]
[1753713514403,15.99822647,188.07,188.01,16.70822647]
[1753713514558,15.99822647,188.05,187.97,31.31974484]
[1753713514869,15.99822647,188.04,187.99,15.99822647]
[1753713515363,15.99822647,188.04,187.99,16.70822647]
[1753713515569,15.99822647,188.05,188.0,0.71]
[1753713515877,15.99822647,188.04,188.0,0.71]
[1753713516277,15.99822647,188.03,187.97,47.90992257]
[1753713516474,5.31793159,188.05,187.99,15.99822647]
[1753713516665,15.99822647,188.04,187.99,15.99822647]
[1753713516992,21.31615806,188.05,187.99,16.70822647]
[1753713517572,21.31615806,188.05,187.99,0.71]
[1753713517573,5.31793159,188.05,187.99,0.71]
[1753713517780,15.99822647,188.04,187.99,16.70822647]
[1753713518076,21.31615806,188.05,188.0,16.70822647]
[1753713518283,15.99822647,188.05,188.01,0.71]
[1753713518599,15.99822647,188.05,188.0,15.99822647]
[1753713518892,15.99822647,188.03,187.98,16.70822647]
[1753713519088,15.99822647,187.99,187.95,0.06]
[1753713519460,5.31910618,188.01,187.95,0.06]
[1753713519665,5.31910618,188.01,187.95,16.76822647]
[1753713519897,15.99822647,188.0,187.95,16.76822647]
[1753713520871,15.99822647,188.0,187.95,16.05822647]
[1753713521084,15.99822647,188.0,187.95,16.76822647]
[1753713521290,15.99822647,188.0,187.96,0.71]
[1753713521489,26.0,188.04,187.96,0.71]
[1753713521490,26.0,188.04,187.98,15.99822647]
[1753713521662,15.99822647,188.02,187.97,16.70822647]
[1753713521868,57.81822647,188.06,188.01,15.99822647]
[1753713522067,57.81822647,188.06,188.01,16.70822647]
[1753713522372,15.99822647,188.03,187.97,16.70822647]
[1753713523074,0.65,188.05,187.95,0.06]
[1753713523075,15.99822647,188.0,187.95,0.06]
[1753713523598,15.99822647,187.99,187.95,0.06]
[1753713523773,21.31753957,188.0,187.95,0.77]
[1753713524096,0.65,188.03,187.95,0.77]
[1753713524097,5.31879162,188.02,187.96,16.70822647]
[1753713524269,15.99822647,188.03,187.97,3.14192217]
[1753713524598,5.31801744,188.04,187.98,18.43014864]
[1753713524897,31.31801744,188.04,187.99,12.90164147]
[1753713525104,31.31801744,188.04,188.0,2.43192217]
[1753713525298,5.31801744,188.04,187.99,11.1797193]
[1753713525596,5.31801744,188.04,188.0,3.13950627]
[1753713525772,5.31801744,188.04,188.0,0.71]
[1753713525974,5.31801744,188.04,187.99,10.4697193]
[1753713525975,15.78773674,188.04,187.98,10.4697193]
[1753713526192,5.31781741,188.05,187.99,2.4298066]
[1753713526399,10.4697193,188.04,187.99,10.4697193]
[1753713526711,10.4697193,188.04,187.99,11.1797193]
[1753713526997,41.82,188.07,188.0,11.1797193]
[1753713527197,13.28910867,188.13,188.05,10.4697193]
[1753713527396,13.28910867,188.13,188.06,10.4697193]
[1753713527573,13.28910867,188.13,188.01,0.5318866]
[1753713527574,10.4697193,188.07,188.01,0.71]
[1753713527781,0.28432314,188.08,187.99,36.4697193]
[1753713527782,10.4697193,188.04,187.99,36.4697193]
[1753713527983,0.93432314,188.08,187.99,37.1797193]
[1753713528296,10.4697193,188.08,188.03,10.4697193]
[1753713528501,0.79216157,188.12,188.04,0.71]
[1753713528797,10.4697193,188.09,188.04,11.1797193]
[1753713529008,53.68563176,188.14,188.07,10.4697193]
[1753713529215,10.4697193,188.12,188.07,11.1797193]
[1753713529375,10.4697193,188.13,188.07,11.1797193]
[1753713529576,10.4697193,188.13,188.08,16.49633998]
[1753713529886,5.31558742,188.13,188.08,0.71]
[1753713530085,10.4697193,188.12,188.08,0.71]
[1753713530487,47.11525805,188.14,188.08,0.71]
[1753713530794,10.4697193,188.12,188.08,0.71]
[1753713531012,47.11525805,188.14,188.08,0.71]
[1753713531174,47.11525805,188.14,188.05,10.4697193]
[1753713531175,10.4697193,188.1,188.05,10.4697193]
[1753713531373,0.03,188.12,188.06,0.71]
[1753713531582,10.4697193,188.1,188.06,0.71]
[1753713531773,5.3458267,188.12,188.06,0.71]
[1753713531971,10.4697193,188.11,188.06,16.4970722]
[1753713532508,0.03,188.12,188.07,11.1797193]
[1753713532711,0.03,188.12,188.08,0.71]
[1753713532882,0.03,188.12,188.09,10.4697193]
[1753713533080,0.03,188.12,188.09,11.1797193]
[1753713533301,0.03,188.12,188.1,0.71]
[1753713533511,0.03,188.12,188.09,11.1797193]
[1753713533683,0.03,188.12,188.09,16.4961692]
[1753713533990,0.03,188.12,188.08,5.31684577]
[1753713534312,0.03,188.12,188.1,10.4697193]
[1753713534626,0.03,188.12,188.09,0.71]
[1753713534905,0.03,188.12,188.11,10.4697193]
[1753713535410,0.03,188.12,188.11,11.1797193]
[1753713535607,0.03,188.12,188.11,0.71]
[1753713536191,0.03,188.12,188.1,15.78602295]
[1753713536711,0.03,188.12,188.1,11.1797193]
[1753713536914,0.03,188.12,188.1,0.71]
[1753713537412,0.03,188.12,188.1,16.4959773]
[1753713537798,0.03,188.12,188.1,15.7859773]
[1753713537980,0.03,188.12,188.11,0.71]
[1753713538615,0.03,188.12,188.09,5.31655917]
[1753713538806,0.03,188.12,188.09,15.78627847]
[1753713539312,0.03,188.12,188.1,0.71]
[1753713539498,0.03,188.12,188.1,11.1797193]
[1753713539695,0.03,188.12,188.11,0.71]
[1753713540104,0.03,188.12,188.09,15.78627847]
[1753713540301,0.03,188.12,188.08,0.71]
[1753713540695,0.03,188.12,188.09,0.71]
[1753713540904,0.03,188.12,188.1,10.4697193]
[1753713541106,0.03,188.12,188.11,10.4697193]
[1753713541600,0.03,188.12,188.11,11.1697193]
[1753713542029,0.03,188.12,188.09,0.53166037]
[1753713542233,0.03,188.12,188.08,0.7]
[1753713542407,0.03,188.12,188.1,10.4697193]
[1753713542605,0.03,188.12,188.11,10.4697193]
[1753713542806,0.03,188.12,188.11,11.1697193]
[1753713543209,0.03,188.12,188.08,58.16656592]
[1753713543409,10.4997193,188.12,188.08,42.38]
[1753713543699,10.4697193,188.11,188.08,42.38]
[1753713543903,10.4997193,188.12,188.08,41.68]
[1753713544127,0.03,188.12,188.08,58.16659694]
[1753713544334,0.03,188.12,188.1,10.4697193]
[1753713544518,0.03,188.12,188.11,10.4697193]
[1753713545013,0.03,188.12,188.09,0.7]
[1753713545204,0.03,188.12,188.09,11.1697193]
[1753713545823,0.03,188.12,188.09,10.4697193]
[1753713546016,0.03,188.12,188.1,0.7]
[1753713546202,0.03,188.12,188.11,10.4697193]
[1753713546403,0.03,188.12,188.11,11.1697193]
[1753713546710,0.03,188.16,188.11,11.70132314]
[1753713546919,0.03,188.16,188.15,10.4697193]
[1753713547418,0.03,188.16,188.13,10.4697193]
[1753713548033,0.03,188.16,188.1,11.1697193]
[1753713548248,0.7,188.16,188.1,0.7]
[1753713548447,0.7,188.16,188.1,6.01620879]
[1753713548807,10.4697193,188.13,188.09,67.64]
[1753713549320,10.4697193,188.14,188.1,0.7]
[1753713549643,10.4697193,188.14,188.09,83.42624909]
[1753713549644,10.4697193,188.14,188.11,0.7]
[1753713550009,10.4697193,188.14,188.09,67.64]
[1753713550210,10.4697193,188.15,188.1,11.1697193]
[1753713550520,10.4697193,188.14,188.09,72.95641526]
[1753713550722,10.4697193,188.15,188.1,0.7]
[1753713551039,10.4697193,188.14,188.1,0.7]
[1753713551248,0.03,188.16,188.1,5.31621296]
[1753713551425,10.4997193,188.16,188.11,0.7]
[1753713551619,10.4997193,188.16,188.1,15.78593226]
[1753713551819,10.4997193,188.16,188.12,0.7]
[1753713552020,0.03,188.16,188.13,11.1697193]
[1753713553031,0.03,188.16,188.13,0.7]
[1753713553431,0.03,188.16,188.12,10.4697193]
[1753713553609,0.03,188.16,188.13,0.7]
[1753713554013,0.03,188.16,188.14,0.7]
[1753713554228,0.03,188.16,188.15,11.00121013]
[1753713554611,0.03,188.19,188.15,11.70121013]
[1753713554813,0.03,188.19,188.18,10.4697193]
[1753713555235,0.03,188.19,188.18,11.1697193]
[1753713555424,0.03,188.19,188.18,16.4837803]
[1753713555833,0.03,188.19,188.18,17.0151864]
[1753713556040,0.03,188.19,188.18,43.0151864]
[1753713556228,0.03,188.19,188.18,84.5951864]
[1753713557147,0.03,188.19,188.18,74.1254671]
[1753713557342,0.03,188.19,188.18,101.37987037]
[1753713557928,0.03,188.19,188.18,42.4837803]
[1753713558235,0.03,188.19,188.18,84.0437803]
[1753713559346,0.03,188.19,188.18,67.54]
[1753713559568,0.03,188.19,188.15,11.1697193]
[1753713559867,0.03,188.19,188.16,41.54]
[1753713560030,10.4697193,188.18,188.16,41.54]
[1753713560220,10.4997193,188.19,188.16,41.54]
[1753713560419,0.03,188.19,188.18,10.4697193]
[1753713560613,0.03,188.19,188.18,37.1697193]
[1753713560860,0.03,188.19,188.18,37.7011254]
[1753713561324,0.03,188.19,188.18,43.0151864]
[1753713561645,0.03,188.19,188.18,42.4837803]
[1753713561852,0.03,188.19,188.18,43.0151864]
[1753713563527,0.03,188.19,188.18,84.5351864]
[1753713563946,0.03,188.19,188.15,10.4697193]
[1753713564153,0.03,188.19,188.14,16.4849067]
[1753713564356,0.03,188.19,188.15,52.6697193]
[1753713564851,0.03,188.19,188.18,10.4697193]
[1753713565021,0.03,188.19,188.18,51.9697193]
[1753713565229,0.03,188.19,188.18,52.6697193]
[1753713565439,0.03,188.19,188.17,10.4697193]
[1753713565644,0.03,188.19,188.18,41.5]
[1753713565858,0.03,188.19,188.18,52.6697193]
[1753713566356,0.03,188.19,188.18,78.6697193]
[1753713566550,0.03,188.19,188.18,52.6697193]
[1753713566956,0.03,188.19,188.18,69.73872641]
[1753713567263,0.03,188.2,188.19,16.78468397]
[1753713567432,0.03,188.2,188.19,33.79955975]
[1753713569556,1e-08,188.2,188.19,34.08388289]
[1753713572182,0.03,188.27,188.23,16.78468397]
[1753713572472,0.69,188.36,188.3,26.0]
[1753713572675,0.1,188.38,188.34,36.4697193]
[1753713572864,0.1,188.38,188.34,78.44067395]
[1753713573342,0.1,188.38,188.34,37.00067395]
[1753713573548,0.1,188.38,188.28,0.53112385]
[1753713573549,0.79,188.35,188.28,0.53112385]
[1753713573751,11.2597193,188.35,188.3,10.4697193]
[1753713573971,0.69,188.34,188.31,41.42]
[1753713574177,0.1,188.35,188.31,51.8897193]
[1753713574383,0.1,188.35,188.32,11.00073034]
[1753713575569,0.79,188.35,188.31,41.95103924]
[1753713575879,0.1,188.35,188.31,52.42075854]
[1753713576355,0.1,188.35,188.31,11.00075854]
[1753713576552,0.1,188.35,188.32,51.8697193]
[1753713576762,0.1,188.35,188.34,36.4697193]
[1753713576965,0.1,188.35,188.34,77.8697193]
[1753713577198,0.1,188.35,188.34,78.5597193]
[1753713577354,0.1,188.38,188.37,10.4697193]
[1753713577553,0.1,188.38,188.37,83.15842026]
[1753713577750,0.1,188.38,188.37,83.84842026]
[1753713577951,0.1,188.38,188.35,10.4697193]
[1753713578154,0.1,188.38,188.36,41.38]
[1753713578961,0.1,188.38,188.36,51.8497193]
[1753713579178,0.1,188.38,188.36,41.38]
[1753713580201,0.1,188.38,188.36,51.8497193]
[1753713580524,0.1,188.38,188.34,26.0]
[1753713580802,0.69,188.37,188.36,41.36]
[1753713581104,6.09847179,188.38,188.36,41.36]
[1753713581408,5.40847179,188.38,188.36,41.36]
[1753713581568,0.1,188.38,188.36,41.36]
[1753713581903,0.1,188.38,188.36,51.8297193]
[1753713582223,0.1,188.38,188.36,52.5197193]
[1753713582367,0.1,188.38,188.36,41.36]
[1753713583885,15.87815632,188.38,188.36,41.32]
[1753713584099,0.1,188.38,188.36,41.32]
[1753713584275,0.1,188.38,188.33,11.1597193]
[1753713584276,0.69,188.37,188.27,0.69]
[1753713584470,0.69,188.37,188.3,10.4697193]
[1753713584669,0.69,188.37,188.31,51.7897193]
[1753713584864,10.4697193,188.36,188.31,51.7897193]
[1753713585102,10.4697193,188.37,188.32,11.1597193]
[1753713585405,15.87835171,188.38,188.32,11.1597193]
[1753713585608,0.1,188.38,188.33,52.4797193]
[1753713585765,0.1,188.38,188.34,11.1597193]
[1753713585971,0.1,188.38,188.35,41.32]
[1753713586308,0.1,188.38,188.35,52.4797193]
[1753713586504,0.1,188.38,188.36,0.69]
[1753713586672,0.1,188.38,188.37,41.3]
[1753713588489,0.1,188.38,188.37,41.99]
[1753713588698,0.1,188.38,188.37,52.4597193]
[1753713588897,0.1,188.38,188.37,57.76842026]
[1753713590308,0.1,188.38,188.37,58.29929035]
[1753713592188,0.1,188.38,188.35,0.06]
[1753713592509,0.1,188.38,188.36,41.26]
[1753713593288,16.56816029,188.38,188.35,0.06]
[1753713593484,10.5697193,188.38,188.35,41.32]
[1753713593687,16.5682201,188.38,188.35,41.32]
[1753713593887,11.2597193,188.38,188.35,41.32]
[1753713594102,10.4697193,188.37,188.35,0.06]
[1753713594281,27.25440327,188.36,188.35,0.06]
[1753713594486,27.94440327,188.36,188.35,0.06]
[1753713594810,27.25440327,188.36,188.35,0.06]
[1753713595198,27.94440327,188.36,188.35,0.06]
[1753713595716,33.25338606,188.36,188.35,0.06]
[1753713596210,33.5377092,188.36,188.35,0.06]
[1753713597897,0.28432314,188.31,188.27,0.06]
[1753713598116,27.25440327,188.28,188.27,0.06]
[1753713599009,28.22872641,188.28,188.27,0.06]
[1753713600211,33.53996499,188.28,188.27,0.06]
[1753713600389,16.75528102,188.28,188.27,0.06]
[1753713600592,10.4697193,188.28,188.27,0.06]
[1753713602033,0.28432314,188.32,188.27,0.06]
[1753713602209,10.4697193,188.32,188.28,0.71]
[1753713602833,10.4697193,188.32,188.27,10.5297193]
[1753713603038,16.78468397,188.33,188.27,0.06]
[1753713603039,10.4697193,188.31,188.27,0.06]
[1753713603332,10.4697193,188.3,188.27,0.06]
[1753713603529,16.78468397,188.33,188.27,0.06]
[1753713603733,10.4697193,188.3,188.27,0.06]
[1753713603921,10.4697193,188.3,188.27,0.77]
[1753713604124,10.4697193,188.28,188.27,0.06]
[1753713604432,17.06900711,188.33,188.27,0.06]
[1753713604633,10.4697193,188.31,188.28,0.71]
[1753713604937,10.4697193,188.32,188.28,0.71]
[1753713605726,10.4697193,188.3,188.27,0.06]
[1753713606515,10.4697193,188.28,188.27,0.06]
[1753713606722,10.4697193,188.28,188.16,6.3154]
[1753713606723,0.28432314,188.26,188.16,0.06]
[1753713606938,10.4697193,188.18,188.16,0.06]
[1753713607117,10.4697193,188.17,188.16,0.06]
[1753713607746,28.20872641,188.17,188.16,0.06]
[1753713608243,28.20872641,188.17,188.08,0.77]
[1753713608244,10.4697193,188.09,188.08,0.06]
[1753713610028,0.28432314,188.14,188.08,0.06]
[1753713610232,10.4697193,188.1,188.08,0.06]
[1753713610549,10.4697193,188.09,188.08,0.06]
[1753713610738,5.31584404,188.12,188.08,0.06]
[1753713610739,10.4697193,188.1,188.08,0.06]
[1753713610951,10.4697193,188.09,188.08,0.06]
[1753713611245,11.42404244,188.09,188.08,0.06]
[1753713611553,28.20872641,188.09,188.08,0.06]
[1753713612347,11.42404244,188.09,188.08,0.06]
[1753713612550,0.28432314,188.1,188.08,0.06]
[1753713612745,10.75404244,188.09,188.08,0.06]
[1753713612936,28.20872641,188.09,188.08,0.06]
[1753713613249,54.20872641,188.09,188.08,0.06]
[1753713613426,36.4697193,188.09,188.08,0.06]
[1753713613625,10.4697193,188.09,188.08,0.06]
[1753713613830,37.28188087,188.09,188.08,0.06]
[1753713614045,37.42404244,188.09,188.08,0.06]
[1753713614349,28.34376157,188.12,188.08,0.06]
[1753713614530,10.4697193,188.11,188.08,0.06]
[1753713614850,41.12,188.13,188.08,0.77]
[1753713615030,5.31407574,188.18,188.09,0.71]
[1753713615236,10.4697193,188.15,188.1,10.4697193]
[1753713615429,22.09875971,188.18,188.08,0.77]
[1753713615741,10.4697193,188.12,188.08,0.77]
[1753713616044,0.67,188.15,188.08,0.06]
[1753713616045,10.4697193,188.1,188.08,0.06]
[1753713616350,10.4697193,188.12,188.08,0.77]
[1753713616548,10.4697193,188.11,188.08,0.06]
[1753713616922,10.4697193,188.09,188.08,0.06]
[1753713618522,15.78632305,188.09,188.08,0.06]
[1753713618918,10.4697193,188.09,188.08,0.06]
[1753713619756,15.78632305,188.09,188.08,0.06]
[1753713619952,16.45632305,188.09,188.08,0.06]
[1753713620434,10.4697193,188.09,188.08,0.06]
[1753713620635,10.4697193,188.1,188.08,0.06]
[1753713620831,26.67,188.15,188.08,0.06]
[1753713621157,10.4697193,188.16,188.1,10.4697193]
[1753713621524,10.4697193,188.17,188.12,10.4697193]
[1753713621732,10.4697193,188.17,188.13,0.71]
[1753713621946,10.4697193,188.16,188.1,11.1797193]
[1753713622157,10.4697193,188.13,188.08,10.5297193]
[1753713622450,0.81216157,188.17,188.09,10.4697193]
[1753713622655,10.4697193,188.13,188.08,11.2397193]
[1753713623033,10.4697193,188.13,188.08,16.55658948]
[1753713623228,10.4697193,188.13,188.08,11.2397193]
[1753713623554,5.98440503,188.17,188.11,10.4697193]
[1753713623741,15.78412433,188.17,188.12,10.4697193]
[1753713624059,10.4697193,188.17,188.12,10.4697193]
[1753713624276,0.14216157,188.17,188.12,11.1797193]
[1753713624446,10.75404244,188.17,188.13,0.71]
[1753713624631,6.9492,188.23,188.15,10.4697193]
[1753713624827,10.4697193,188.22,188.14,0.71]
[1753713625352,15.78265097,188.22,188.14,0.71]
[1753713625531,10.4697193,188.21,188.14,0.71]
[1753713625956,10.4697193,188.19,188.14,0.71]
[1753713626263,10.4697193,188.21,188.15,16.49462761]
[1753713626957,10.4697193,188.21,188.15,6.02490831]
[1753713627373,0.28432314,188.22,188.15,6.02490831]
[1753713627661,10.4697193,188.24,188.19,10.4697193]
[1753713628037,10.4697193,188.24,188.19,0.71]
[1753713628662,10.4697193,188.24,188.18,10.4697193]
[1753713628663,10.4697193,188.22,188.18,5.31401185]
[1753713628829,10.4697193,188.21,188.16,0.71]
[1753713629030,10.4697193,188.22,188.16,11.1797193]
[1753713629255,10.4697193,188.22,188.17,10.4697193]
[1753713629437,10.4697193,188.22,188.18,0.71]
[1753713629643,10.75404244,188.24,188.19,0.71]
[1753713629837,51.5097193,188.25,188.2,11.1797193]
[1753713630259,10.4697193,188.26,188.21,11.1797193]
[1753713630444,10.4697193,188.26,188.22,5.31293167]
[1753713630640,10.4697193,188.25,188.2,36.4697193]
[1753713630850,10.4697193,188.23,188.2,26.0]
[1753713631159,10.4697193,188.25,188.2,41.78313271]
[1753713631467,10.4697193,188.26,188.21,0.72]
[1753713631759,10.4697193,188.25,188.21,0.72]
[1753713631967,10.4697193,188.24,188.2,31.31341341]
[1753713632429,10.4697193,188.24,188.2,26.0]
[1753713632632,10.4697193,188.23,188.2,26.0]
[1753713632859,10.4697193,188.22,188.2,26.0]
[1753713633030,0.97432314,188.25,188.2,26.0]
[1753713633247,10.4697193,188.22,188.2,26.0]
[1753713633447,10.4697193,188.24,188.2,26.72]
[1753713633659,10.4697193,188.23,188.2,26.0]
[1753713633845,10.4697193,188.22,188.2,26.0]
[1753713634447,10.4697193,188.21,188.16,51.4697193]
[1753713634651,0.03,188.28,188.11,41.68]
[1753713634652,10.4697193,188.17,188.11,41.68]
[1753713634961,10.4697193,188.13,188.09,0.72]
[1753713635161,10.4697193,188.1,188.08,0.06]
[1753713635349,10.4697193,188.09,188.08,0.06]
[1753713635848,0.83216157,188.15,188.08,0.06]
[1753713636162,10.4697193,188.09,188.08,0.06]
[1753713636363,16.76064619,188.09,188.08,0.06]
[1753713637664,20.60609695,188.09,188.08,0.06]
[1753713638374,4.23742586,188.14,188.08,0.06]
[1753713638375,10.4697193,188.14,188.08,16.56660573]
[1753713638540,10.4697193,188.15,188.09,0.72]
[1753713638741,10.4697193,188.15,188.08,26.06]
[1753713638742,10.4697193,188.11,188.08,26.06]
[1753713638963,0.69,188.15,188.08,0.06]
[1753713639148,10.4697193,188.1,188.08,0.06]
[1753713639550,10.4697193,188.14,188.09,0.72]
[1753713639776,10.4697193,188.14,188.1,26.72]
[1753713639971,40.94,188.16,188.1,26.72]
[1753713640153,10.4697193,188.14,188.1,26.72]
[1753713640345,6.00409814,188.18,188.11,0.72]
[1753713640552,10.4697193,188.15,188.11,0.72]
[1753713640867,10.4697193,188.15,188.12,0.72]
[1753713641387,10.4697193,188.13,188.08,0.06]
[1753713641553,10.4697193,188.11,188.1,26.0]
[1753713642166,0.69,188.14,188.09,26.0]
[1753713642365,10.4697193,188.11,188.09,26.0]
[1753713642548,10.4697193,188.11,188.08,0.06]
[1753713642549,0.28432314,188.09,188.08,0.06]
[1753713642751,10.75404244,188.09,188.08,0.06]
[1753713642946,11.44404244,188.09,188.08,0.06]
[1753713643142,10.4697193,188.09,188.08,0.06]
[1753713643368,10.75404244,188.09,188.08,0.06]
[1753713643574,15.29861956,188.09,188.08,0.06]
[1753713643747,18.46328639,188.09,188.08,0.06]
[1753713643947,55.50861956,188.09,188.08,0.06]
[1753713644455,60.82522331,188.09,188.08,0.06]
[1753713644668,61.51522331,188.09,188.08,0.06]
[1753713644879,65.37059151,188.09,188.08,0.06]
[1753713645042,64.68059151,188.09,188.08,0.06]
[1753713645245,60.82522331,188.09,188.08,0.06]
[1753713645549,59.36313062,188.09,188.08,0.06]
[1753713646672,64.67973437,188.09,188.08,0.06]
[1753713646873,65.36973437,188.09,188.08,0.06]
[1753713647775,0.28432314,188.08,188.04,0.06]
[1753713647958,10.75404244,188.05,188.04,0.06]
[1753713648163,60.03313062,188.05,188.04,0.06]
[1753713648357,59.34313062,188.05,188.04,0.06]
[1753713648793,64.66086526,188.05,188.04,0.06]
[1753713649075,65.35086526,188.05,188.04,0.06]
[1753713649266,64.66341597,188.05,188.04,0.06]
[1753713649462,65.35341597,188.05,188.04,0.06]
[1753713649981,78.64775258,188.05,188.0,0.06]
[1753713650183,10.4697193,188.01,188.0,0.06]
[1753713650361,69.79540063,188.01,188.0,0.06]
[1753713650561,70.48540063,188.01,188.0,0.06]
[1753713650867,65.33454734,188.01,188.0,0.06]
[1753713651266,0.28432314,188.0,187.97,0.06]
[1753713651578,10.75404244,187.98,187.97,0.06]
[1753713651774,60.0240008,187.98,187.97,0.06]
[1753713652271,63.49123575,187.98,187.97,0.06]
[1753713652465,60.0240008,187.98,187.97,0.06]
[1753713652972,68.81049187,187.98,187.97,0.06]
[1753713653366,65.34371566,187.98,187.97,0.06]
[1753713654478,64.65371566,187.98,187.97,0.06]
[1753713654679,13.18183479,187.98,187.97,0.06]
[1753713654868,18.18967766,187.98,187.97,0.78]
[1753713655068,59.04967766,187.98,187.97,0.78]
[1753713655272,64.36939252,187.98,187.97,0.06]
[1753713655780,65.34371566,187.98,187.97,0.06]
[1753713655980,65.34371566,187.98,187.95,0.06]
[1753713655981,26.28432314,187.96,187.95,0.06]
[1753713656189,0.28432314,187.95,187.93,0.06]
[1753713656478,59.99330386,187.94,187.93,0.06]
[1753713656862,65.31415093,187.94,187.93,1e-08]
[1753713657061,65.30285003,187.94,187.93,1e-08]